fUSD/lending_fUSD_20250202
["ID","MTS","AMOUNT","RATE_DAILY","PERIOD"]
[351229867,1738458632432,-800.0,0.00015318,2]
[351229868,1738458632441,-366.94,0.00015595,2]
[351229869,1738458632449,-224.84321,0.00015762,2]
[351229870,1738458632458,-373.75,0.00015934,2]
[351229871,1738458632467,-3138.0,0.00016,2]
[351229872,1738458632477,-2000.0,0.0001604,2]
[351229873,1738458632486,-500.0,0.00016066,2]
[351229874,1738458632495,-150.0,0.000161,2]
[351229875,1738458632504,-544.63962194,0.000161,2]
[351229876,1738458632513,-170.57581854,0.000161,2]
[351229877,1738458632522,-2500.0,0.000161,2]
[351229878,1738458632531,-945.10181272,0.000161,2]
[351229879,1738458632539,-178.0,0.00016132,2]
[351229880,1738458632548,-544.63962186,0.00016133,2]
[351229881,1738458632556,-544.63962186,0.00016167,2]
[351229882,1738458632566,-500.0,0.00016173,2]
[351229883,1738458632574,-699.996,0.00016188,2]
[351229884,1738458632583,-880.1044652,0.00016189,2]
[351229885,1738458632592,-627.9732193,0.00016189,2]
[351229886,1738458632601,-2203.8465772,0.00016189,2]
[351229887,1738458632610,-500.0,0.00016199,2]
[351229888,1738458632619,-500.0,0.00016199,2]
[351229889,1738458632630,-500.0,0.00016199,2]
[351229890,1738458632639,-543.84898404,0.00016199,2]
[351229891,1738458632648,-500.0,0.00016199,2]
[351229892,1738458632658,-500.0,0.00016199,2]
[351229893,1738458632668,-500.0,0.00016199,2]
[351229894,1738458632677,-500.0,0.00016199,2]
[351229895,1738458632687,-1546.0,0.000162,2]
[351229896,1738458632697,-90029.99540396,0.000162,2]
[351229897,1738458632709,-915.47591036,0.000162,2]
[351229898,1738458632735,-19861.62777996,0.000162,2]
[351229899,1738458632757,-24534.32044202,0.000162,2]
[351229945,1738458638095,-710.83276191,0.000162,2]
[351229946,1738458638159,-197821.55580684,0.000162,2]
[351229947,1738458638175,-290538.67195817,0.000162,2]
[351229948,1738458638222,-3130.27857659,0.000162,2]
[351229949,1738458638242,-7571.614,0.000162,2]
[351229950,1738458638283,-25327.5,0.000162,2]
[351229951,1738458638302,-20300.03287337,0.000162,2]
[351229957,1738458638515,-33897.28002274,0.000162,2]
[351229963,1738458638554,-199177.56747319,0.000162,2]
[351230182,1738458640498,-630.46499997,0.000162,2]
[351230184,1738458640510,-760.53500003,0.000162,2]
[351230186,1738458640519,-159.46139476,0.000162,2]
[351230191,1738458640559,-12034.848552,0.000162,2]
[351230497,1738458643375,-1046.2,0.000162,2]
[351230516,1738458643540,-428593.6596847,0.000162,2]
[351230518,1738458643550,-175500.8632571,0.000162,2]
[351230519,1738458643562,-8980.37661738,0.000162,2]
[351230527,1738458646241,-1251.0,0.000162,2]
[351230528,1738458646251,-31861.72217961,0.000162,2]
[351230529,1738458646302,-2216.11965636,0.000162,2]
[351230530,1738458646420,-1809.45183458,0.000162,2]
[351230531,1738458646431,-763.29599696,0.000162,2]
[351230532,1738458646443,-1392.95810558,0.000162,2]
[351230668,1738458690808,150.0,0.00018663,120]
[351230669,1738458754383,233.0,0.00023,120]
[351230670,1738458791101,500.0,0.00023,120]
[351230674,1738459390720,630.691503,0.00023,120]
[351230675,1738459399586,200.0,0.00023,120]
[351230677,1738459454903,4921.9846508,0.00023,120]
[351230678,1738459508711,115536.2491514,0.00012,2]
[351230679,1738459508735,947559.97497932,0.00012,2]
[351230695,1738459681623,382517.3749272,0.0001,2]
[351230953,1738459832476,-150.0,0.00011999,2]
[351230954,1738459832486,-418.45789232,0.00011999,2]
[351230955,1738459832496,-449.31655378,0.00011999,2]
[351230956,1738459832506,-500.0,0.00011999,2]
[351230957,1738459832516,-277.89244696,0.00011999,2]
[351230958,1738459832526,-78371.83754233,0.00012,2]
[351230959,1738459832537,-43845.98919333,0.00012,2]
[351230960,1738459832548,-15535.0,0.00012,2]
[351230961,1738459832559,-6099.9999999,0.00012,2]
[351230962,1738459832570,-5880.0,0.00012,2]
[351230963,1738459832581,-1550.0,0.00012,2]
[351230964,1738459832592,-444.80258924,0.00012,2]
[351230965,1738459832704,-871.5527439,0.00012,2]
[351230966,1738459832716,-2737.33492461,0.00012,2]
[351230967,1738459832727,-1587.35583697,0.00012,2]
[351230968,1738459832738,-2810.31557355,0.00012,2]
[351230969,1738459832749,-749.60047608,0.00012,2]
[351230970,1738459832786,-452.08295896,0.00012,2]
[351230971,1738459832797,-295.63804909,0.00012,2]
[351230972,1738459832808,-261.5702574,0.00012,2]
[351230973,1738459832830,-3002.04649014,0.00012,2]
[351230974,1738459832841,-3498.10131452,0.00012,2]
[351230975,1738459832852,-816.50002378,0.00012,2]
[351230976,1738459832864,-4829.99999997,0.00012,2]
[351231012,1738459838435,-262.93877021,0.00012,2]
[351231013,1738459838451,-1084.8938299,0.00012,2]
[351231014,1738459838463,-1493.17051346,0.00012,2]
[351231015,1738459838475,-26312.59843614,0.00012,2]
[351231016,1738459838487,-476351.49417565,0.00012,2]
[351231017,1738459838498,-50671.8423197,0.00012,2]
[351231018,1738459838510,-178003.81241226,0.00012,2]
[351231019,1738459838522,-476.81295156,0.00012,2]
[351231020,1738459838533,-2926.29258008,0.00012,2]
[351231021,1738459838555,-14770.45935537,0.00012,2]
[351231022,1738459838566,-437.70943335,0.00012,2]
[351231048,1738459839108,-376.0213201,0.00012,2]
[351231053,1738459839140,-292.48028797,0.00012,2]
[351231055,1738459839151,-3791.46814228,0.00012,2]
[351231058,1738459839171,-11139.13849929,0.00012,2]
[351231204,1738459840712,-4821.6798791,0.00012,2]
[351231206,1738459840723,-308.94361421,0.00012,2]
[351231519,1738459843763,-25265.77774051,0.00012,2]
[351231522,1738459843775,-1088.67926773,0.00012,2]
[351231525,1738459843796,-4684.41577734,0.00012,2]
[351231526,1738459843807,-615.40926904,0.00012,2]
[351231586,1738459846413,-887.27502866,0.00012,2]
[351231587,1738459846486,-2766.45280141,0.00012,2]
[351231588,1738459846575,-1354.24570954,0.00012,2]
[351231594,1738459988992,156.43,0.00010137,2]
[351231596,1738459998193,200.0,0.00023,120]
[351231597,1738460115410,-43414.39829387,0.00012,2]
[351231598,1738460273107,-150.0,0.00012294,2]
[351231600,1738460562146,217.34745773,0.00011974,2]
[351231601,1738460599189,224.563292,0.00023,120]
[351231603,1738460658588,397.78,0.00011922,2]
[351232398,1738460977360,3056.03821,0.00012294,2]
[351232407,1738461031551,-217.34745773,0.00012468,2]
[351232408,1738461031561,-243.39712455,0.00012949,2]
[351232409,1738461031570,-296.0,0.00013425,2]
[351232410,1738461031580,-439.26,0.00013541,2]
[351232411,1738461031589,-774.41,0.00013541,2]
[351232412,1738461031598,-439.26,0.00013541,2]
[351232413,1738461031607,-774.41,0.00013541,2]
[351232414,1738461031616,-3952.04271856,0.00013541,2]
[351232415,1738461031625,-785.64,0.000136,2]
[351232416,1738461031634,-445.97,0.000136,2]
[351232417,1738461031643,-178.35,0.00013769,2]
[351232418,1738461031652,-1394.35,0.0001378,2]
[351232419,1738461031661,-439.26,0.000138,2]
[351232420,1738461031670,-774.41,0.000138,2]
[351232421,1738461031679,-327.48,0.00013834,2]
[351232422,1738461031688,-710.83,0.00013836,2]
[351232423,1738461031697,-11759.31,0.0001384,2]
[351232424,1738461031706,-150.0,0.00013847,2]
[351232425,1738461031715,-150.0,0.00013847,2]
[351232426,1738461031724,-150.0,0.00013847,2]
[351232427,1738461031733,-150.0,0.00013847,2]
[351232428,1738461031742,-150.0,0.00013847,2]
[351232429,1738461031751,-150.0,0.00013847,2]
[351232430,1738461031760,-439.26,0.000139,2]
[351232431,1738461031769,-772.43,0.000139,2]
[351232432,1738461031778,-229.65,0.00013902,2]
[351232433,1738461031788,-250.0,0.00013914,2]
[351232434,1738461031797,-500.0,0.00013948,2]
[351232435,1738461031806,-150.0,0.00013976,2]
[351232436,1738461031815,-23718.49827897,0.00013977,2]
[351232437,1738461031874,-5576.63172103,0.00013977,2]
[351232438,1738461031884,-6756.67823935,0.00014013,2]
[351232439,1738461031902,-1820.02176065,0.00014013,2]
[351232440,1738461031912,-645.99,0.00014177,2]
[351232441,1738461031921,-397.19330279,0.00014186,2]
[351232442,1738461031959,-808.87346338,0.00013441,2]
[351232443,1738461031969,-0.58669721,0.00014186,2]
[351232444,1738461031978,-1000.0,0.00014209,2]
[351232445,1738461031987,-171.92,0.00014378,2]
[351232446,1738461031996,-912.35,0.00014441,2]
[351232447,1738461032007,-5600.77078257,0.00014482,2]
[351232448,1738461032018,-9472.60000002,0.00014482,2]
[351232450,1738461032029,-8490.78806453,0.00014482,2]
[351232452,1738461032041,-335.84115288,0.00014482,2]
[351232454,1738461032051,-205.50384712,0.00014575,2]
[351232456,1738461032061,-716.40615288,0.00014575,2]
[351232458,1738461032070,-439.12,0.00014575,2]
[351232460,1738461032080,-150.0,0.00014674,2]
[351232462,1738461032090,-150.0,0.000148,2]
[351232464,1738461032099,-874.78,0.00014849,2]
[351232466,1738461032109,-150.0,0.00014849,2]
[351232468,1738461032119,-150.0,0.00014849,2]
[351232470,1738461032128,-150.0,0.00014849,2]
[351232472,1738461032138,-150.0,0.00014849,2]
[351232474,1738461032147,-150.0,0.00014852,2]
[351232476,1738461032156,-150.0,0.00014883,2]
[351232478,1738461032165,-150.0,0.00014894,2]
[351232480,1738461032174,-3474.62232044,0.000149,2]
[351232482,1738461032186,-1188.25535851,0.000149,2]
[351232484,1738461032194,-148.45110812,0.00014978,3]
[351233030,1738461037528,-3.54889188,0.00014978,3]
[351233032,1738461037537,-6422.69392561,0.00015,2]
[351233034,1738461037548,-926.19250293,0.00015,2]
[351233039,1738461037584,-494.23223917,0.00015,2]
[351233041,1738461037595,-1363.83747749,0.00015,2]
[351233058,1738461037738,-2207.7138548,0.00015,2]
[351233060,1738461037747,-292.08,0.00015037,2]
[351233062,1738461037756,-3762.45130969,0.00015038,2]
[351233064,1738461037767,-287.56529037,0.00015038,2]
[351233102,1738461039644,-340.27430453,0.00015038,2]
[351233103,1738461039913,-272.58677421,0.00015038,2]
[351233104,1738461039925,-700.0,0.00015044,2]
[351233105,1738461039935,-150.0,0.00015065,2]
[351233106,1738461039946,-150.0,0.00015109,2]
[351233107,1738461039954,-150.0,0.00015158,2]
[351233108,1738461039964,-4662.8776788,0.00015176,2]
[351233109,1738461039974,-150.0,0.00015243,2]
[351233110,1738461039984,-4662.8776788,0.00015314,2]
[351233111,1738461039993,-152.0,0.00015331,4]
[351233112,1738461040003,-150.0,0.00015346,2]
[351233113,1738461040013,-150.0,0.00015365,2]
[351233114,1738461040022,-150.0,0.00015374,2]
[351233115,1738461040033,-150.79,0.00015397,2]
[351233116,1738461040042,-150.0,0.00015447,2]
[351233117,1738461040052,-4662.8776788,0.00015452,2]
[351233121,1738461040285,-9587.0,0.00015466,2]
[351233122,1738461040295,-150.0,0.00015488,2]
[351233124,1738461040304,-900.0,0.000155,5]
[351233126,1738461040313,-150.0,0.00015528,2]
[351233127,1738461040323,-150.0,0.00015548,2]
[351233128,1738461040332,-150.0,0.00015589,2]
[351233129,1738461040341,-4662.8776788,0.0001559,2]
[351233130,1738461040351,-1900.0,0.000156,5]
[351233131,1738461040361,-150.0,0.00015606,2]
[351233132,1738461040370,-229.65,0.00015639,2]
[351233133,1738461040380,-150.0,0.00015665,2]
[351233134,1738461040394,-150.0,0.00015666,2]
[351233135,1738461040405,-2029.203,0.00015669,2]
[351233136,1738461040414,-1275.86,0.00015669,2]
[351233137,1738461040423,-150.432,0.00015669,2]
[351233138,1738461040433,-640.045,0.00015669,2]
[351233139,1738461040443,-570.303,0.00015669,2]
[351233140,1738461040453,-1873.471,0.00015669,2]
[351233141,1738461040463,-2961.639,0.00015669,2]
[351233142,1738461040473,-910.976,0.00015669,2]
[351233143,1738461040483,-1268.301,0.00015669,2]
[351233144,1738461040493,-785.0,0.00015669,2]
[351233145,1738461040502,-553.433,0.00015669,2]
[351233146,1738461040512,-539.937,0.00015669,2]
[351233147,1738461040523,-3933.253,0.00015669,2]
[351233148,1738461040532,-150.0,0.00015669,2]
[351233149,1738461040542,-1010.872,0.00015669,2]
[351233150,1738461040551,-150.13,0.00015669,2]
[351233151,1738461040561,-151.169,0.00015669,2]
[351233152,1738461040570,-1111.673,0.00015669,2]
[351233153,1738461040579,-153.578,0.00015669,2]
[351233154,1738461040589,-205.678,0.00015669,2]
[351233155,1738461040598,-300.0,0.00015671,2]
[351233156,1738461040608,-152.0,0.00015684,5]
[351233157,1738461040617,-164.26339173,0.00015699,2]
[351233158,1738461040627,-2900.0,0.000157,5]
[351233159,1738461040636,-150.0,0.00015718,2]
[351233160,1738461040646,-150.0,0.00015723,2]
[351233161,1738461040655,-4662.8776788,0.00015728,2]
[351233162,1738461040665,-150.0,0.0001575,2]
[351233163,1738461040675,-150.0,0.00015774,2]
[351233164,1738461040684,-1000.0,0.00015774,2]
[351233165,1738461040694,-150.0,0.00015793,2]
[351233166,1738461040703,-1128.0,0.000158,2]
[351233167,1738461040713,-1000.0,0.000158,2]
[351233168,1738461040723,-3900.0,0.000158,5]
[351233169,1738461040733,-150.0,0.00015807,2]
[351233170,1738461040742,-164.26339173,0.00015836,2]
[351233171,1738461040752,-150.0,0.00015845,2]
[351233172,1738461040761,-150.0,0.00015849,2]
[351233173,1738461040771,-150.0,0.00015853,2]
[351233174,1738461040780,-4662.8776788,0.00015866,2]
[351233175,1738461040789,-150.0,0.00015867,2]
[351233176,1738461040799,-150.0,0.00015895,2]
[351233177,1738461040809,-150.0,0.00015895,2]
[351233178,1738461040818,-4800.0,0.000159,5]
[351233179,1738461040829,-150.0,0.00015902,2]
[351233180,1738461040840,-150.0,0.00015904,2]
[351233181,1738461040854,-7918.33685384,0.00015907,2]
[351233182,1738461040863,-7918.33685384,0.00015912,2]
[351233183,1738461040872,-150.0,0.00015926,2]
[351233184,1738461040882,-7918.33685384,0.00015926,2]
[351233185,1738461040893,-7918.33685384,0.00015933,2]
[351233186,1738461040902,-200.0,0.00015934,2]
[351233187,1738461040912,-150.0,0.00015936,2]
[351233188,1738461040922,-150.0,0.00015941,2]
[351233189,1738461040931,-150.0,0.00015946,2]
[351233190,1738461040941,-1000.0,0.00015954,2]
[351233191,1738461040951,-200.0,0.00015957,2]
[351233192,1738461040960,-744.68978676,0.00015957,2]
[351233193,1738461040970,-150.0,0.00015959,2]
[351233194,1738461040979,-150.0,0.00015969,2]
[351233195,1738461040988,-164.26339173,0.00015973,2]
[351233196,1738461040998,-150.0,0.00015982,2]
[351233197,1738461041007,-1000.0,0.00015985,2]
[351233198,1738461041017,-150.0,0.00015998,2]
[351233199,1738461041026,-10692.16203793,0.00016,2]
[351233200,1738461041035,-150.0,0.00016002,2]
[351233201,1738461041045,-4285.0734572,0.00016003,2]
[351233202,1738461041058,-377.8042216,0.00016003,2]
[351233203,1738461041067,-150.0,0.00016008,2]
[351233204,1738461041077,-150.0,0.00016018,2]
[351233205,1738461041086,-150.0,0.00016022,2]
[351233206,1738461041095,-150.0,0.00016028,2]
[351233207,1738461041105,-152.0,0.00016037,6]
[351233208,1738461041114,-150.0,0.0001605,2]
[351233209,1738461041123,-150.0,0.00016058,2]
[351233210,1738461041132,-364.6304693,0.0001606,2]
[351233211,1738461041141,-150.0,0.00016063,2]
[351233212,1738461041151,-500.0,0.0001607,2]
[351233213,1738461041160,-150.0,0.00016084,2]
[351233214,1738461041170,-150.0,0.00016094,2]
[351233215,1738461041179,-1208.2028922,0.00016095,7]
[351233226,1738461042493,-988.53653725,0.00016005,2]
[351233228,1738461042503,-49142.16814528,0.00016095,7]
[351233231,1738461042513,-22962.09038652,0.00016095,7]
[351233238,1738461042705,-46614.16253543,0.00016095,7]
[351233239,1738461042812,-1109.79189269,0.00016095,7]
[351233240,1738461042824,-572.4865023,0.00016095,7]
[351233258,1738461045634,-988.5365372,0.00016048,2]
[351233259,1738461045644,-413.13609811,0.00016095,7]
[351233260,1738461045853,-610.88518181,0.00016095,7]
[351233261,1738461045864,-23800.000001,0.00016095,7]
[351233271,1738461049498,220.51,0.00010137,2]
[351233274,1738461647560,150.0,0.00012221,2]
[351233275,1738461647656,150.0,0.00012146,2]
[351233301,1738462231779,-385.24,0.00012718,2]
[351233302,1738462231789,-150.0,0.00012862,2]
[351233303,1738462231799,-943.10689998,0.00013632,2]
[351233304,1738462231832,-119.87675083,0.00013632,2]
[351233305,1738462231841,-202.83818671,0.00013769,2]
[351233306,1738462231885,-171.40181329,0.00013769,2]
[351233307,1738462231895,-150.0,0.00013904,2]
[351233308,1738462231904,-150.0,0.0001399,2]
[351233309,1738462231914,-150.0,0.0001399,2]
[351233310,1738462231923,-150.0,0.00014106,2]
[351233311,1738462231933,-150.0,0.00014211,2]
[351233312,1738462231942,-521.41572839,0.0001435,2]
[351233313,1738462231965,-537.58427161,0.0001435,2]
[351233314,1738462231974,-681.95289946,0.00014364,2]
[351233315,1738462231986,-318.04710054,0.00014364,2]
[351233316,1738462231996,-229.42,0.00014382,2]
[351233317,1738462232005,-696.72,0.00014419,2]
[351233318,1738462232014,-269.76735504,0.00014441,2]
[351233319,1738462232039,-247.39264496,0.00014441,2]
[351233320,1738462232048,-506.71735504,0.00014447,2]
[351233321,1738462232060,-282.41264496,0.00014447,2]
[351233322,1738462232069,-250.0,0.00014462,2]
[351233323,1738462232079,-72.78735514,0.00014515,2]
[351233324,1738462232090,-77.21264486,0.00014515,2]
[351233325,1738462232099,-150.0,0.00014582,2]
[351233326,1738462232109,-150.0,0.00014646,2]
[351233327,1738462232119,-150.0,0.0001466,2]
[351233328,1738462232127,-150.0,0.00014778,2]
[351233329,1738462232137,-1500.0,0.00014815,2]
[351233330,1738462232146,-1159.55338237,0.00014828,2]
[351233331,1738462232157,-889.83270945,0.00014828,2]
[351233332,1738462232168,-1771.84085,0.00014828,2]
[351233333,1738462232180,-2679.85253739,0.00014828,2]
[351233522,1738462237641,-304.90056614,0.00014828,2]
[351233525,1738462238181,-17094.01995465,0.00014828,2]
[351233527,1738462238190,-917.63,0.00014832,2]
[351233528,1738462238200,-12792.0,0.000149,2]
[351233530,1738462238210,-150.0,0.00014917,2]
[351233532,1738462238220,-150.0,0.00014926,2]
[351233534,1738462238233,-385.24,0.00014982,2]
[351233536,1738462238243,-150.0,0.00014995,2]
[351233539,1738462238252,-150.0,0.00014995,2]
[351233541,1738462238263,-500.0,0.00015044,2]
[351233542,1738462238277,-600.0,0.00015044,2]
[351233544,1738462238290,-367.54,0.00015044,2]
[351233546,1738462238301,-152.0,0.00015066,3]
[351233548,1738462238311,-1059.0,0.00015067,2]
[351233550,1738462238321,-150.0,0.00015138,2]
[351233552,1738462238337,-150.0,0.00015146,2]
[351233554,1738462238347,-150.0,0.00015148,2]
[351233556,1738462238356,-378.94,0.00015218,2]
[351233558,1738462238366,-150.0,0.00015222,2]
[351233560,1738462238378,-5558.0,0.000153,3]
[351233562,1738462238389,-150.0,0.00015328,2]
[351233564,1738462238398,-150.0,0.00015333,2]
[351233566,1738462238407,-150.0,0.00015337,2]
[351233568,1738462238417,-150.0,0.00015394,2]
[351233570,1738462238426,-600.0,0.000154,5]
[351233572,1738462238436,-150.0,0.00015428,2]
[351233574,1738462238445,-150.0,0.00015438,2]
[351233576,1738462238454,-150.0,0.00015488,2]
[351233578,1738462238464,-374.24,0.0001549,2]
[351233580,1738462238473,-1200.0,0.000155,5]
[351233582,1738462238483,-152.0,0.00015507,4]
[351233584,1738462238493,-150.0,0.00015589,2]
[351233586,1738462238502,-150.0,0.00015592,2]
[351233588,1738462238511,-1800.0,0.000156,5]
[351233590,1738462238521,-150.0,0.00015621,2]
[351233592,1738462238530,-150.0,0.00015669,2]
[351233594,1738462238539,-2500.0,0.000157,5]
[351233596,1738462238548,-150.0,0.00015707,2]
[351233598,1738462238558,-150.0,0.00015754,2]
[351233614,1738462238801,-150.0,0.00015762,2]
[351233615,1738462238810,-13663.22340373,0.000158,2]
[351233617,1738462238820,-3017.0,0.000158,2]
[351233619,1738462238830,-3100.0,0.000158,5]
[351233620,1738462238839,-5558.0,0.000158,5]
[351233622,1738462238848,-150.0,0.0001581,2]
[351233624,1738462238858,-150.0,0.00015811,2]
[351233625,1738462238867,-150.0,0.00015824,2]
[351233627,1738462238876,-398.09828334,0.00015881,2]
[351233629,1738462238887,-17348.2685,0.000159,2]
[351233630,1738462238896,-178.28499049,0.000159,2]
[351233632,1738462238905,-249.8567,0.000159,2]
[351233634,1738462238914,-600.0,0.000159,5]
[351233636,1738462238923,-790.82922976,0.000159,2]
[351233637,1738462238933,-476.31798413,0.000159,2]
[351233639,1738462238942,-3264.01437516,0.000159,2]
[351233641,1738462238951,-150.0,0.00015903,2]
[351233642,1738462238960,-150.0,0.00015912,2]
[351233644,1738462238970,-151.14570161,0.00015919,2]
[351233646,1738462238979,-150.0,0.00015919,2]
[351233647,1738462238989,-790.82922976,0.00015933,2]
[351233649,1738462238998,-3264.01437516,0.00015934,2]
[351233651,1738462239009,-150.0,0.00015946,2]
[351233653,1738462239018,-150.0,0.00015948,2]
[351233655,1738462239027,-152.0,0.00015948,5]
[351233657,1738462239036,-173.07,0.00015948,2]
[351233658,1738462239046,-790.82922976,0.00015967,2]
[351233660,1738462239055,-3264.01437516,0.00015969,2]
[351233662,1738462239065,-220.18832722,0.0001599,2]
[351233663,1738462239074,-300.0,0.00015999,2]
[351233665,1738462239084,-300.0,0.00015999,2]
[351233667,1738462239093,-300.0,0.00015999,2]
[351233668,1738462239102,-300.0,0.00015999,2]
[351233670,1738462239113,-300.0,0.00015999,2]
[351233672,1738462239123,-300.0,0.00015999,2]
[351233674,1738462239132,-300.0,0.00015999,2]
[351233675,1738462239142,-300.0,0.00015999,2]
[351233677,1738462239151,-300.0,0.00015999,2]
[351233679,1738462239160,-638.39,0.00015999,2]
[351233680,1738462239169,-190.76843781,0.00015999,2]
[351233682,1738462239179,-863.44570939,0.00015999,2]
[351233684,1738462239189,-270.6406,0.00016,2]
[351233686,1738462239198,-145350.56662454,0.00016,2]
[351233689,1738462239223,-1018.5,0.00016,2]
[351233691,1738462239235,-1454.3225435,0.00016,2]
[351233693,1738462239246,-916.34,0.00016,2]
[351233694,1738462239257,-321.1250003,0.00016,2]
[351233700,1738462239307,-20220.0,0.00016,2]
[351233701,1738462239319,-28178.96688687,0.00016,2]
[351233704,1738462239340,-2037.07499931,0.00016,2]
[351233706,1738462239351,-1096.5168813,0.00016,2]
[351233708,1738462239362,-290.43099803,0.00016,2]
[351233711,1738462239378,-196640.0,0.00016,2]
[351233762,1738462239874,-289.96179788,0.00016,2]
[351233771,1738462239960,-521.22486412,0.00016,2]
[351233773,1738462239971,-2429.4141106,0.00016,2]
[351233776,1738462240003,-10310.28202644,0.00016,2]
[351233777,1738462240014,-1787.93298377,0.00016,2]
[351233778,1738462240025,-680.75824123,0.00016,2]
[351233779,1738462240036,-310.91847837,0.00016,2]
[351233780,1738462240075,-469.31070039,0.00016,2]
[351233781,1738462240086,-598.5713343,0.00016,2]
[351233782,1738462240099,-2293.8030258,0.00016,2]
[351233783,1738462240131,-11457.72645813,0.00016,2]
[351233784,1738462240142,-577.46205938,0.00016,2]
[351233785,1738462240153,-1199.79854666,0.00016,2]
[351233787,1738462240174,-34024.08212566,0.00016,2]
[351233788,1738462240215,-832.99038769,0.00016,2]
[351233789,1738462240229,-665.31684,0.00016,2]
[351233814,1738462242865,-485.305,0.00016,2]
[351233835,1738462245868,-410.32197294,0.00016,2]
[351233839,1738462245975,-5398.0,0.00016,2]
[351233840,1738462246029,-1012.3,0.00016,2]
[351233841,1738462246041,-4273.89798352,0.00016,2]
[351234127,1738462761964,156.43,0.00010137,2]
[351234129,1738462889271,302.0,0.00023,120]
[351234130,1738462889421,7439.0,0.00023,120]
[351234132,1738463043527,500.0,0.00023,120]
[351234133,1738463088354,553.0,0.00023,120]
[351234134,1738463108939,11751.89433227,0.00012,2]
[351234135,1738463108966,376000.0,0.00012,2]
[351234136,1738463108993,596545.10064954,0.00012,2]
[351234137,1738463113435,1486.61,0.00023,120]
[351234139,1738463206112,-363.61,0.00013136,2]
[351234140,1738463206132,-204.07,0.00014787,2]
[351234141,1738463206154,-2000.0,0.00014843,2]
[351234142,1738463206176,-250.0,0.0001489,2]
[351234143,1738463206198,-500.0,0.00014946,2]
[351234144,1738463206219,-315.19,0.00014946,2]
[351234145,1738463206242,-940.41577372,0.00015,2]
[351234146,1738463244843,189.020211,0.00023,120]
[351234147,1738463303143,151.57688322,0.00012,30]
[351234157,1738463435464,-345.42,0.0001294,2]
[351234160,1738463435477,-1000.0,0.00014828,2]
[351234162,1738463435487,-2751.0,0.00014834,2]
[351234164,1738463435497,-828.14,0.00014834,2]
[351234165,1738463435507,-267.86,0.0001486,2]
[351234166,1738463435517,-2011.28574336,0.00015,2]
[351234167,1738463435527,-258.58,0.00015001,2]
[351234168,1738463435536,-170.44,0.00015002,2]
[351234169,1738463435546,-200.0,0.00015011,2]
[351234170,1738463435558,-500.0,0.00015044,2]
[351234171,1738463435568,-700.0,0.00015044,2]
[351234172,1738463435578,-23900.0,0.00015111,2]
[351234173,1738463435587,-1158.236,0.00015111,2]
[351234174,1738463435597,-596.25,0.00015578,2]
[351234175,1738463435606,-301.95,0.00015578,2]
[351234176,1738463435616,-291.66666667,0.00015589,2]
[351234177,1738463435626,-291.66666667,0.00015644,2]
[351234178,1738463435636,-404.67404125,0.00015704,2]
[351234179,1738463435650,-291.66666667,0.00015726,2]
[351234180,1738463435660,-166.66666665,0.00015781,2]
[351234181,1738463435670,-1368.18478175,0.000158,2]
[351234182,1738463435680,-1011.62,0.000158,3]
[351234183,1738463435690,-291.66666667,0.00015808,2]
[351234184,1738463435700,-291.66666667,0.0001589,2]